bitfinex/quotes_BTCUSD_20240611
["timestamp","ask_amount","ask_price","bid_price","bid_amount"]
[1718096634272,0.3183,67502.0,67501.0,0.000946]
[1718096634488,0.3183,67502.0,67501.0,0.004946]
[1718096634703,0.3183,67502.0,67501.0,0.002946]
[1718096635354,0.68643761,67514.0,67501.0,0.002946]
[1718096635584,0.0859,67502.0,67501.0,0.004946]
[1718096635797,0.0859,67502.0,67501.0,0.002946]
[1718096636771,0.21828614,67513.0,67501.0,0.000946]
[1718096636977,0.0859,67502.0,67501.0,0.001946]
[1718096638090,0.0859,67502.0,67501.0,0.011946]
[1718096638268,0.08676,67502.0,67501.0,0.011946]
[1718096638480,0.08676,67502.0,67501.0,0.012946]
[1718096638923,0.08676,67502.0,67501.0,0.002946]
[1718096640391,0.23706,67502.0,67501.0,0.002946]
[1718096640625,0.32296,67502.0,67501.0,0.002946]
[1718096641004,0.32296,67502.0,67501.0,0.000946]
[1718096641205,0.32296,67502.0,67501.0,0.001946]
[1718096641356,0.32296,67502.0,67501.0,0.002946]
[1718096641582,0.32296,67502.0,67501.0,0.001946]
[1718096641786,0.32296,67502.0,67501.0,0.000946]
[1718096642031,0.32396,67502.0,67501.0,0.000946]
[1718096643360,0.32496,67502.0,67501.0,0.000946]
[1718096644396,0.16996,67502.0,67501.0,0.000946]
[1718096644530,0.00286,67502.0,67501.0,0.000946]
[1718096644725,0.08876,67502.0,67501.0,0.000946]
[1718096645164,0.08876,67502.0,67501.0,0.13589632]
[1718096645789,0.08876,67502.0,67501.0,0.17695776]
[1718096645790,0.00286,67502.0,67501.0,0.17695776]
[1718096645954,0.08876,67502.0,67501.0,0.17695776]
[1718096647588,0.00286,67502.0,67501.0,0.17695776]
[1718096647796,0.00286,67502.0,67501.0,0.14955776]
[1718096647999,0.00286,67502.0,67501.0,0.30770276]
[1718096648537,0.00286,67502.0,67501.0,0.33510276]
[1718096648744,0.00086,67502.0,67501.0,0.33510276]
[1718096648956,0.00086,67502.0,67501.0,0.30770276]
[1718096649163,0.00086,67502.0,67501.0,0.30970276]
[1718096650020,0.00086,67502.0,67501.0,0.29770276]
[1718096650222,0.00086,67502.0,67501.0,0.29970276]
[1718096650897,0.00086,67502.0,67501.0,0.29770276]
[1718096651215,0.00086,67502.0,67501.0,0.28604132]
[1718096651427,0.00086,67502.0,67501.0,0.15764558]
[1718096652455,0.00086,67502.0,67501.0,0.15771186]
[1718096652638,0.00086,67502.0,67501.0,0.1713733]
[1718096652844,0.08676,67502.0,67501.0,0.1713733]
[1718096653045,0.08676,67502.0,67501.0,0.15771186]
[1718096653490,0.08676,67502.0,67501.0,0.15794401]
[1718096655532,0.08676,67502.0,67501.0,0.004946]
[1718096655754,0.08676,67502.0,67501.0,0.15856873]
[1718096657568,0.08676,67502.0,67501.0,0.15656873]
[1718096658388,0.08676,67502.0,67501.0,0.15456873]
[1718096658818,0.08676,67502.0,67501.0,0.15656873]
[1718096659893,0.08676,67502.0,67501.0,0.15856873]
[1718096661221,0.08676,67502.0,67501.0,0.17223017]
[1718096662643,0.08676,67502.0,67501.0,0.19963017]
[1718096663630,0.08676,67502.0,67501.0,0.18596873]
[1718096663835,0.08676,67502.0,67501.0,0.19963017]
[1718096664210,0.08676,67502.0,67501.0,0.19948252]
[1718096664417,0.10576,67502.0,67501.0,0.19948252]
[1718096666382,0.10576,67502.0,67501.0,0.19963442]
[1718096669066,0.10576,67502.0,67501.0,0.18597298]
[1718096669921,0.05576,67502.0,67501.0,0.18597298]
[1718096670131,0.1049,67502.0,67501.0,0.18597298]
[1718096670541,0.1049,67502.0,67501.0,0.19963442]
[1718096671775,0.1049,67502.0,67501.0,0.18597298]
[1718096673287,0.1049,67502.0,67501.0,0.19963442]
[1718096673507,0.019,67502.0,67501.0,0.19963442]
[1718096673710,0.1049,67502.0,67501.0,0.19963442]
[1718096677609,0.019,67502.0,67501.0,0.19963442]
[1718096677808,0.019,67502.0,67501.0,0.34777942]
[1718096681913,0.019,67502.0,67501.0,0.34776338]
[1718096688464,0.019,67502.0,67501.0,0.34776617]
[1718096688676,0.019,67502.0,67501.0,0.35776617]
[1718096688889,0.019,67502.0,67501.0,0.45776617]
[1718096690548,0.019,67502.0,67501.0,0.45775969]
[1718096694119,0.019,67502.0,67501.0,0.50197217]
[1718096694979,0.019,67502.0,67501.0,0.45775969]
[1718096695202,0.019,67502.0,67501.0,1.4284831]
[1718096695405,0.00086,67514.0,67513.0,0.19918044]
[1718096695614,0.00086,67514.0,67513.0,0.29918044]
[1718096695827,0.00086,67514.0,67513.0,0.45278769]
[1718096696833,0.00086,67514.0,67513.0,0.45195171]
[1718096698046,0.00686,67514.0,67513.0,0.45295171]
[1718096698220,0.00686,67514.0,67513.0,0.45495171]
[1718096698584,0.00086,67514.0,67513.0,0.45195171]
[1718096698795,0.00086,67514.0,67513.0,0.45395171]
[1718096699396,0.00086,67514.0,67513.0,0.45195171]
[1718096699988,0.00086,67514.0,67513.0,0.45395171]
[1718096700387,0.00086,67514.0,67513.0,0.45195171]
[1718096700594,0.04999279,67527.0,67526.0,0.17175244]
[1718096700803,0.04999279,67527.0,67526.0,0.45192371]
[1718096701006,0.168,67533.0,67532.0,0.01366144]
[1718096701212,0.0821,67533.0,67532.0,0.01366144]
[1718096701415,0.168,67533.0,67532.0,0.01366144]
[1718096701619,0.168,67533.0,67528.0,0.148085]
[1718096701620,0.4718,67535.0,67534.0,0.01366144]
[1718096702079,0.5577,67535.0,67534.0,0.16643271]
[1718096702304,0.5577,67535.0,67534.0,0.19383271]
[1718096702305,0.4718,67535.0,67534.0,0.19383271]
[1718096702550,0.4718,67535.0,67534.0,0.34190571]
[1718096702963,0.4768,67535.0,67534.0,0.44190571]
[1718096703985,0.005,67535.0,67534.0,0.44190571]
[1718096704402,0.01,67535.0,67534.0,0.44290571]
[1718096705719,0.01,67535.0,67534.0,0.41550571]
[1718096705891,0.01,67535.0,67534.0,0.41627044]
[1718096709718,0.01,67535.0,67534.0,0.42627044]
[1718096709845,0.01,67535.0,67534.0,0.41627044]
[1718096711110,0.01,67535.0,67534.0,0.42627044]
[1718096711526,0.01,67535.0,67534.0,0.44437344]
[1718096711921,0.01,67535.0,67534.0,0.47177344]
[1718096712618,0.01,67535.0,67534.0,0.46177344]
[1718096712817,0.01,67535.0,67534.0,0.47177344]
[1718096713023,0.01,67535.0,67534.0,0.44437344]
[1718096713193,0.005,67535.0,67534.0,0.44337344]
[1718096713396,0.005,67535.0,67534.0,0.43337344]
[1718096714234,0.005,67535.0,67534.0,0.44537344]
[1718096714712,0.00086,67541.0,67540.0,0.01]
[1718096714927,0.00086,67541.0,67540.0,0.16172144]
[1718096715130,0.00086,67541.0,67540.0,0.41524748]
[1718096715931,0.28858121,67554.0,67542.0,0.148055]
[1718096716139,0.0859,67544.0,67542.0,0.148055]
[1718096716391,0.0859,67544.0,67543.0,0.01366144]
[1718096717386,0.0929,67544.0,67543.0,0.01366144]
[1718096717630,0.0859,67544.0,67543.0,0.01366144]
[1718096718074,0.0939,67544.0,67543.0,0.01466144]
[1718096718301,0.0999,67544.0,67543.0,0.01466144]
[1718096718526,0.014,67544.0,67543.0,0.16271444]
[1718096718764,0.0939,67544.0,67543.0,0.16271444]
[1718096719239,0.1019,67544.0,67543.0,0.31723883]
[1718096720516,0.016,67544.0,67543.0,0.31723883]
[1718096723538,0.016,67544.0,67543.0,0.31582174]
[1718096725255,0.016,67544.0,67543.0,0.39852174]
[1718096725742,0.016,67544.0,67543.0,0.39592174]
[1718096726864,0.016,67544.0,67543.0,0.81295342]
[1718096727303,0.016,67544.0,67543.0,0.73285342]
[1718096727706,0.008,67544.0,67543.0,0.7500478]
[1718096727968,0.0495346,67554.0,67553.0,0.01366144]
[1718096728117,0.0495346,67554.0,67553.0,0.16576874]
[1718096728318,0.0859,67557.0,67553.0,0.31379974]
[1718096728520,0.0859,67557.0,67556.0,0.01366144]
[1718096728718,0.46913805,67558.0,67556.0,0.16576874]
[1718096728990,0.46913805,67558.0,67557.0,0.16576874]
[1718096729701,0.46913805,67558.0,67557.0,0.31379174]
[1718096730109,0.22333805,67558.0,67557.0,0.31379174]
[1718096731285,0.23710844,67558.0,67557.0,0.31379174]
[1718096732514,0.23710844,67558.0,67557.0,0.55239174]
[1718096732757,0.23710844,67558.0,67557.0,0.95837365]
[1718096732965,0.23710844,67558.0,67557.0,1.10269358]
[1718096733170,0.22333805,67558.0,67557.0,1.10269358]
[1718096733788,0.22333805,67558.0,67557.0,1.10469358]
[1718096734192,0.22333805,67558.0,67557.0,1.10269358]
[1718096734403,0.22333805,67558.0,67557.0,1.70073958]
[1718096734616,0.04188805,67558.0,67557.0,1.82373958]
[1718096734833,0.034,67558.0,67557.0,2.30846128]
[1718096735052,0.034,67558.0,67557.0,4.33616428]
[1718096735265,0.00086,67561.0,67560.0,0.86671044]
[1718096735510,1e-08,67562.0,67561.0,0.32266144]
[1718096735722,1e-08,67562.0,67561.0,1.31900838]
[1718096735952,1e-08,67562.0,67561.0,1.47264628]
[1718096736136,1e-08,67562.0,67561.0,1.57264628]
[1718096736347,1e-08,67562.0,67561.0,1.38397058]
[1718096736556,1e-08,67562.0,67561.0,1.38624807]
[1718096736785,0.05833268,67581.0,67569.0,0.32266144]
[1718096736786,1e-08,67570.0,67569.0,0.32266144]
[1718096737001,1e-08,67570.0,67569.0,1.0633856]
[1718096737229,1e-08,67570.0,67569.0,2.6056068]
[1718096737440,1e-08,67570.0,67569.0,2.7942825]
[1718096737640,1e-08,67570.0,67569.0,1.3750613]
[1718096737869,0.00858,67581.0,67575.0,0.47064444]
[1718096737870,0.00086392,67576.0,67575.0,0.47064444]
[1718096738041,0.00139513,67581.0,67580.0,0.76657844]
[1718096738245,0.04991347,67589.0,67588.0,0.40361644]
[1718096738456,0.44152979,67612.0,67599.0,0.40566839]
[1718096738665,0.24715686,67600.0,67599.0,0.92746773]
[1718096738877,0.2332425,67600.0,67599.0,0.92746773]
[1718096739102,0.24715686,67600.0,67599.0,0.92746773]
[1718096739313,0.24715686,67600.0,67599.0,1.12746773]
[1718096739314,0.21738686,67600.0,67599.0,1.12746773]
[1718096739520,0.2034725,67600.0,67599.0,1.12746773]
[1718096739751,0.2034725,67600.0,67599.0,1.40634473]
[1718096739956,0.2034725,67600.0,67599.0,1.48308953]
[1718096740167,0.2034725,67600.0,67599.0,1.74575153]
[1718096740386,0.2034725,67600.0,67599.0,1.53803773]
[1718096740387,0.10675959,67600.0,67599.0,1.53803773]
[1718096740588,0.09675959,67600.0,67599.0,1.15242973]
[1718096740833,0.09675959,67600.0,67599.0,1.13051928]
[1718096741038,0.09675959,67600.0,67599.0,1.09095762]
[1718096741296,0.09675959,67600.0,67599.0,0.93605762]
[1718096741750,0.09675959,67600.0,67599.0,0.85575762]
[1718096741968,0.09675959,67600.0,67599.0,0.41513634]
[1718096742180,0.09675959,67600.0,67599.0,0.41213634]
[1718096742395,0.09675959,67600.0,67599.0,0.41313634]
[1718096742596,0.09675959,67600.0,67599.0,0.41413634]
[1718096743025,0.09675959,67600.0,67599.0,0.41313634]
[1718096743428,0.09675959,67600.0,67599.0,0.41413634]
[1718096743653,0.09675959,67600.0,67599.0,0.41513634]
[1718096744060,0.09675959,67600.0,67599.0,0.41413634]
[1718096744854,0.09675959,67600.0,67599.0,0.41213634]
[1718096745173,0.09675959,67600.0,67599.0,0.41413634]
[1718096745382,0.09675959,67600.0,67599.0,0.57016216]
[1718096745577,0.09675959,67600.0,67599.0,0.80386216]
[1718096745913,0.08921959,67600.0,67599.0,0.82117986]
[1718096746125,0.08921959,67600.0,67599.0,1.44004186]
[1718096746342,0.08921959,67600.0,67599.0,2.56264202]
[1718096746568,0.08921959,67600.0,67599.0,2.78507717]
[1718096747592,0.08921959,67600.0,67599.0,2.77445717]
[1718096748632,0.03311,67600.0,67599.0,2.77445717]
[1718096748837,0.00857,67612.0,67611.0,0.01987595]
[1718096749201,0.0762,67635.0,67625.0,0.02253739]
[1718096749378,0.0762,67635.0,67625.0,0.16041139]
[1718096749616,0.03067788,67626.0,67625.0,0.4137246]
[1718096749825,0.00856,67626.0,67625.0,0.4137246]
[1718096750238,0.00356,67626.0,67625.0,0.40118721]
[1718096750445,0.02567788,67626.0,67625.0,0.26041139]
[1718096750627,0.00356,67626.0,67625.0,0.26041139]
[1718096750838,0.00356,67626.0,67625.0,0.247874]
[1718096752100,0.00356,67626.0,67625.0,0.248874]
[1718096752334,0.00356,67626.0,67625.0,0.250874]
[1718096752335,0.08646,67626.0,67625.0,0.250874]
[1718096752733,0.10857788,67626.0,67625.0,0.250874]
[1718096752970,0.40752186,67626.0,67625.0,0.003]
[1718096753179,0.62182186,67626.0,67625.0,0.001]
[1718096753383,0.00012405,67616.0,67611.0,0.01432029]
[1718096753639,0.2336,67615.0,67611.0,0.01432029]
[1718096753873,0.2336,67615.0,67609.0,0.147908]
[1718096754050,0.25571788,67615.0,67609.0,0.147908]
[1718096754275,0.25571788,67615.0,67610.0,0.16044339]
[1718096754500,0.25571788,67615.0,67608.0,0.0180872]
[1718096754501,0.25571788,67615.0,67614.0,0.01253739]
[1718096754687,0.25571788,67615.0,67613.0,0.147899]
[1718096754846,0.25571788,67615.0,67614.0,0.1]
[1718096755870,0.88086186,67615.0,67614.0,0.002]
[1718096756093,0.00012405,67609.0,67602.0,0.04915476]
[1718096756305,0.2143,67610.0,67602.0,0.16046039]
[1718096756515,0.5,67615.0,67614.0,0.01253739]
[1718096756725,0.5,67615.0,67614.0,0.002]
[1718096756931,0.5,67615.0,67614.0,0.01553739]
[1718096757139,0.5,67615.0,67614.0,0.11553739]
[1718096757343,0.5221328,67615.0,67614.0,0.11453739]
[1718096757556,0.5221328,67615.0,67614.0,0.102]
[1718096757769,0.73655685,67615.0,67614.0,0.002]
[1718096757986,0.9693328,67615.0,67608.0,0.1]
[1718096758409,0.7550328,67615.0,67610.0,0.01253739]
[1718096758621,0.7550328,67615.0,67610.0,0.16044339]
[1718096758830,0.7550328,67615.0,67611.0,0.26044039]
[1718096759008,0.7550328,67615.0,67614.0,0.147898]
[1718096759206,0.7550328,67615.0,67602.0,0.002]
[1718096759207,0.7550328,67615.0,67612.0,0.1]
[1718096759854,0.00012405,67613.0,67612.0,0.1]
[1718096760055,0.00012405,67610.0,67608.0,0.001]
[1718096760673,0.02213622,67609.0,67608.0,0.001]
[1718096761099,0.00012405,67605.0,67601.0,0.19752402]
[1718096761309,0.233,67604.0,67601.0,0.04959802]
[1718096761516,0.233,67604.0,67595.0,0.01253739]
[1718096761517,0.39941837,67604.0,67596.0,0.147937]
[1718096761722,0.00012405,67602.0,67596.0,0.147937]
[1718096761938,0.39941837,67604.0,67596.0,0.147937]
[1718096761939,0.00012405,67600.0,67596.0,0.147937]
[1718096762145,0.00012405,67596.0,67589.0,0.0200063]
[1718096762362,0.14444398,67595.0,67585.0,0.01253739]
[1718096762576,0.16650974,67595.0,67583.0,0.01253739]
[1718096762793,0.00012405,67587.0,67585.0,0.147961]
[1718096763001,0.00739803,67588.0,67581.0,0.01432029]
[1718096763209,0.02201967,67586.0,67581.0,0.01432029]
[1718096763429,0.02190524,67587.0,67581.0,0.01432029]
[1718096763641,0.1613,67587.0,67581.0,0.01432029]
[1718096763848,0.02183198,67585.0,67581.0,0.01432029]
[1718096764055,0.02183081,67586.0,67583.0,0.002]
[1718096764267,0.00012405,67585.0,67581.0,0.01432029]
[1718096764497,0.1593,67580.0,67575.0,0.04909846]
[1718096764719,0.00012405,67577.0,67575.0,0.04862398]
[1718096764935,0.0764,67577.0,67574.0,0.01167219]
[1718096765363,0.21442405,67575.0,67574.0,0.01167219]
[1718096765779,0.1593,67576.0,67574.0,0.01167219]
[1718096765992,0.02178973,67575.0,67574.0,0.01167219]
[1718096766444,0.02178973,67575.0,67574.0,0.01367219]
[1718096766657,0.02178973,67575.0,67574.0,0.01567219]
[1718096766909,0.02178973,67575.0,67574.0,0.01167219]
[1718096768006,0.02178973,67575.0,67574.0,0.01367219]
[1718096768235,0.02178973,67575.0,67574.0,0.02620958]
[1718096768408,0.02178973,67575.0,67574.0,0.01653739]
[1718096769284,0.166,67580.0,67579.0,0.01253739]
[1718096770563,0.166,67580.0,67579.0,0.01453739]
[1718096770771,0.166,67580.0,67579.0,0.00259039]
[1718096771791,0.166,67580.0,67579.0,0.00459039]
[1718096772000,0.079,67581.0,67579.0,0.00459039]
[1718096772214,0.079,67581.0,67580.0,0.00059039]
[1718096772628,0.5,67592.0,67585.0,0.00059039]
[1718096772844,0.14431993,67591.0,67583.0,0.147965]
[1718096773257,0.16372954,67591.0,67583.0,0.147965]
[1718096773463,0.14431993,67591.0,67583.0,0.14855539]
[1718096774417,0.14431993,67591.0,67585.0,0.00059039]
[1718096774822,0.14431993,67591.0,67586.0,0.00059039]
[1718096775056,0.14431993,67591.0,67587.0,0.00059039]
[1718096775278,0.14431993,67591.0,67583.0,0.151965]
[1718096775279,0.1638,67592.0,67588.0,0.00059039]
[1718096775481,0.1638,67592.0,67590.0,0.00059039]
[1718096775730,0.1638,67592.0,67591.0,0.00059039]
[1718096775932,0.001,67591.0,67590.0,0.00059039]
[1718096776462,0.1638,67592.0,67588.0,0.14854439]
[1718096776665,0.1638,67592.0,67588.0,0.147954]
[1718096777108,0.1718,67592.0,67591.0,0.001]
[1718096777308,0.1638,67592.0,67588.0,0.147954]
[1718096777762,0.1638,67592.0,67589.0,0.00059039]
[1718096778066,0.1708,67592.0,67590.0,0.001]
[1718096778262,0.1638,67592.0,67588.0,0.149954]
[1718096778689,0.1678,67592.0,67588.0,0.149954]
[1718096779103,0.1678,67592.0,67588.0,0.147954]
[1718096779303,0.1638,67592.0,67588.0,0.147954]
[1718096779522,0.1718,67592.0,67591.0,0.001]
[1718096779724,0.1638,67592.0,67588.0,0.149954]
[1718096779883,0.1638,67592.0,67589.0,0.00059039]
[1718096780086,0.163647,67592.0,67588.0,0.151954]
[1718096780292,0.163647,67592.0,67588.0,0.149954]
[1718096780907,0.163647,67592.0,67591.0,0.002]
[1718096781108,0.163647,67592.0,67590.0,0.00059039]
[1718096781318,0.163647,67592.0,67591.0,0.00059039]
[1718096781506,0.163647,67592.0,67589.0,0.00059039]
[1718096781721,0.163647,67592.0,67590.0,0.00059039]
[1718096781939,0.163647,67592.0,67589.0,0.00059039]
[1718096782349,0.163647,67592.0,67590.0,0.00059039]
[1718096782553,0.163647,67592.0,67588.0,0.149954]
[1718096782696,0.163647,67592.0,67589.0,0.00259039]
[1718096782895,0.163647,67592.0,67590.0,0.00259039]
[1718096783344,0.163647,67592.0,67590.0,0.00059039]
[1718096783539,0.40731826,67676.0,67556.0,0.47005972]
[1718096783540,0.51940961,67590.0,67589.0,0.002]
[1718096783776,0.86372954,67590.0,67589.0,0.002]
[1718096784085,0.86372954,67590.0,67589.0,0.00152643]
[1718096784266,0.81167954,67590.0,67589.0,0.00105922]
[1718096784689,0.66372954,67590.0,67577.0,0.00059039]
[1718096784933,0.31542954,67589.0,67577.0,0.00059039]
[1718096785151,0.29601993,67589.0,67577.0,0.00059039]
[1718096785369,0.29601993,67589.0,67579.0,0.00059039]
[1718096785826,0.2143,67588.0,67581.0,0.00059039]
[1718096786035,0.14431993,67587.0,67580.0,0.00059039]
[1718096786245,0.2143,67588.0,67579.0,0.14856339]
[1718096786376,0.2143,67588.0,67580.0,0.00059039]
[1718096786569,0.2143,67588.0,67579.0,0.14856339]
[1718096786774,0.01940961,67584.0,67579.0,0.002]
[1718096787046,0.16372954,67584.0,67579.0,0.004]
[1718096787249,0.01940961,67583.0,67579.0,0.002]
[1718096787806,0.1524,67581.0,67580.0,0.002]
[1718096788023,0.1524,67581.0,67579.0,0.002]
[1718096788230,0.1524,67581.0,67575.0,0.1]
[1718096788613,0.1524,67581.0,67579.0,0.001]
[1718096789414,0.1524,67581.0,67575.0,0.10059039]
[1718096789611,0.1524,67581.0,67575.0,0.101]
[1718096790034,0.1524,67581.0,67579.0,0.002]
[1718096790242,0.1524,67581.0,67575.0,0.1]
[1718096790450,0.00739904,67580.0,67575.0,0.1]
[1718096790647,0.01940961,67579.0,67575.0,0.002]
[1718096790869,0.01940961,67577.0,67572.0,0.1]
[1718096791706,0.0073995,67576.0,67572.0,0.1]
[1718096791912,0.0073995,67576.0,67575.0,0.002]
[1718096792118,0.01940961,67579.0,67575.0,0.002]
[1718096793150,0.01940961,67579.0,67570.0,0.26231429]
[1718096793405,0.14431993,67578.0,67570.0,0.26231429]
[1718096793618,0.14431993,67578.0,67575.0,0.001]
[1718096794954,0.14431993,67578.0,67575.0,0.002]
[1718096795175,0.16372954,67578.0,67575.0,0.002]
[1718096795360,0.01940961,67577.0,67575.0,0.002]
[1718096795557,0.16372954,67577.0,67575.0,0.002]
[1718096795758,0.14431993,67577.0,67575.0,0.002]
[1718096796342,0.14431993,67577.0,67570.0,0.26231429]
[1718096796721,0.14431993,67577.0,67575.0,0.003]
[1718096797131,0.14431993,67577.0,67575.0,0.001]
[1718096797534,0.14431993,67577.0,67575.0,0.003]
[1718096797741,0.14431993,67577.0,67575.0,0.003946]
[1718096798165,0.14431993,67577.0,67575.0,0.002946]
[1718096799208,0.14431993,67577.0,67575.0,0.003946]
[1718096799782,0.14431993,67577.0,67575.0,0.000946]
[1718096799998,0.14431993,67577.0,67575.0,0.002946]
[1718096800800,0.1524,67581.0,67576.0,0.00059039]
[1718096801031,0.14431993,67580.0,67576.0,0.00059039]
[1718096801229,0.14431993,67580.0,67577.0,0.00059039]
[1718096801473,0.14431993,67580.0,67575.0,0.00453639]
[1718096801649,0.14431993,67580.0,67576.0,0.00059039]
[1718096801867,0.14431993,67580.0,67579.0,0.00059039]
[1718096802072,0.1542,67584.0,67583.0,0.00059039]
[1718096802234,0.1511,67587.0,67585.0,0.00059039]
[1718096802429,0.2274,67590.0,67589.0,0.147953]
[1718096802706,0.00086,67592.0,67587.0,0.00059039]
[1718096802846,0.00086,67592.0,67588.0,0.00059039]
[1718096803059,0.00086,67592.0,67590.0,0.00059039]
[1718096803404,0.00086,67592.0,67588.0,0.00059039]
[1718096803806,0.00086,67592.0,67590.0,0.00059039]
[1718096804152,0.00086,67592.0,67591.0,0.14853839]
[1718096804358,0.00886,67592.0,67591.0,0.147948]
[1718096804552,0.01386,67592.0,67591.0,0.147948]
[1718096805182,0.00886,67592.0,67591.0,0.147948]
[1718096805390,0.00886,67592.0,67590.0,0.001]
[1718096805596,0.01886,67592.0,67591.0,0.001]
[1718096805908,0.01086,67592.0,67591.0,0.001]
[1718096807329,0.67458954,67592.0,67591.0,0.001]
[1718096807531,0.91208954,67592.0,67591.0,0.001]
[1718096808486,0.92008954,67592.0,67591.0,0.001]
[1718096808913,0.91208954,67592.0,67591.0,0.001]
[1718096809346,0.92208954,67592.0,67591.0,0.002]
[1718096817866,0.92191147,67592.0,67591.0,0.002]
[1718096818085,0.90250186,67592.0,67591.0,0.002]
[1718096819890,0.92191147,67592.0,67591.0,0.002]
[1718096822094,0.90250186,67592.0,67591.0,0.002]
[1718096822701,0.32200186,67592.0,67591.0,0.002]
[1718096826206,0.16500186,67592.0,67591.0,0.002]
[1718096833070,0.1788469,67592.0,67591.0,0.002]
[1718096836920,0.2646469,67592.0,67591.0,0.002]
[1718096837701,0.28405651,67592.0,67591.0,0.002]
[1718096837948,0.2646469,67592.0,67591.0,0.002]
[1718096838750,0.28405651,67592.0,67591.0,0.002]
[1718096841477,0.28328115,67592.0,67591.0,0.002]
[1718096843044,0.26387154,67592.0,67591.0,0.002]
[1718096843527,0.28328115,67592.0,67591.0,0.002]
[1718096843727,0.27387154,67592.0,67591.0,0.002]
[1718096843903,0.26387154,67592.0,67591.0,0.002]
[1718096846915,0.28328115,67592.0,67591.0,0.002]
[1718096848063,0.26387154,67592.0,67591.0,0.002]
[1718096848267,0.28328115,67592.0,67591.0,0.002]
[1718096848697,0.26387154,67592.0,67591.0,0.002]
[1718096848900,0.28328115,67592.0,67591.0,0.002]
[1718096849974,0.26387154,67592.0,67591.0,0.002]
[1718096851118,0.17807154,67592.0,67591.0,0.002]
[1718096851255,0.26387154,67592.0,67591.0,0.002]
[1718096851468,0.28328115,67592.0,67591.0,0.002]
[1718096851668,0.26387154,67592.0,67591.0,0.002]
[1718096852965,0.28328115,67592.0,67591.0,0.002]
[1718096853187,0.75951671,67592.0,67591.0,0.002]
[1718096853386,0.75951671,67592.0,67574.0,0.01744778]
[1718096853387,0.1571,67576.0,67574.0,0.01744778]
[1718096853617,0.25672085,67576.0,67572.0,0.04997179]
[1718096853786,0.25672085,67576.0,67569.0,0.075]
[1718096853787,0.25672085,67576.0,67575.0,0.07767654]
[1718096854071,0.25672085,67576.0,67575.0,0.000946]
[1718096854291,0.09962085,67576.0,67575.0,0.000946]
[1718096854918,0.09962085,67576.0,67575.0,0.002946]
[1718096855128,0.01382085,67576.0,67575.0,0.004946]
[1718096855377,0.09962085,67576.0,67575.0,0.002946]
[1718096855572,0.0858,67576.0,67575.0,0.000946]
[1718096855774,0.09962085,67576.0,67575.0,0.000946]
[1718096855893,0.09962085,67576.0,67575.0,0.001946]
[1718096856729,0.09962085,67576.0,67575.0,0.003946]
[1718096861691,0.09962085,67576.0,67575.0,0.00453639]
[1718096861926,0.09962085,67576.0,67575.0,0.003946]
[1718096865258,0.01382085,67576.0,67575.0,0.003946]
[1718096865463,0.09962085,67576.0,67575.0,0.003946]
[1718096878738,0.09962085,67576.0,67575.0,6.003946]
[1718096879084,0.0858,67576.0,67575.0,6.003946]
[1718096880785,0.10520961,67576.0,67575.0,6.003946]
[1718096881193,0.0858,67576.0,67575.0,6.003946]
[1718096884648,0.1586,67577.0,67575.0,6.003946]
[1718096884865,0.0858,67576.0,67575.0,6.003946]
[1718096885715,0.0858,67576.0,67575.0,6.001946]
[1718096885916,0.0858,67576.0,67575.0,6.002946]
[1718096886332,0.0858,67576.0,67575.0,6.001946]
[1718096886766,0.0858,67576.0,67575.0,6.002946]
[1718096887187,0.0858,67576.0,67575.0,6.003946]
[1718096888614,0.0858,67576.0,67575.0,6.15741517]
[1718096891434,0.24952954,67576.0,67575.0,6.15741517]
[1718096891596,0.39141993,67576.0,67575.0,6.15741517]
[1718096892445,0.41082954,67576.0,67575.0,6.15741517]
[1718096892891,0.39141993,67576.0,67575.0,6.15741517]
[1718096893507,0.41082954,67576.0,67575.0,6.15742318]
[1718096893880,0.41082954,67576.0,67575.0,6.003946]
[1718096894083,0.41082954,67576.0,67575.0,6.1574233]
[1718096894855,0.39141993,67576.0,67575.0,6.1574233]
[1718096895598,0.42456106,67576.0,67575.0,6.003946]
[1718096896063,0.70306106,67576.0,67575.0,6.003946]
[1718096896274,1.11960103,67576.0,67575.0,6.003946]
[1718096896378,1.30192359,67576.0,67575.0,5.363546]
[1718096896583,1.41960421,67576.0,67575.0,5.363546]
[1718096896782,1.13380421,67576.0,67575.0,5.363546]
[1718096897033,1.41960421,67576.0,67575.0,5.360546]
[1718096897236,1.30192359,67576.0,67575.0,5.361546]
[1718096897410,1.41960704,67576.0,67575.0,5.363546]
[1718096897608,1.4196906,67576.0,67575.0,5.363546]
[1718096897789,1.4196906,67576.0,67575.0,5.362546]
[1718096898009,1.4197315,67576.0,67575.0,5.362546]
[1718096898668,1.4197315,67576.0,67575.0,5.360546]
[1718096899102,1.4337315,67576.0,67575.0,5.361546]
[1718096899572,1.4477315,67576.0,67575.0,5.361546]
[1718096900728,1.4477315,67576.0,67575.0,4.721146]
[1718096901472,1.5477315,67576.0,67575.0,4.721146]
[1718096901843,1.63394108,67576.0,67575.0,4.721146]
[1718096902482,1.5477315,67576.0,67575.0,4.721146]
[1718096902651,1.5337315,67576.0,67575.0,4.721146]
[1718096902856,1.5197315,67576.0,67575.0,4.720146]
[1718096903083,1.5477315,67576.0,67575.0,4.721146]
[1718096903314,1.4619315,67576.0,67575.0,4.721146]
[1718096903468,1.66656675,67576.0,67575.0,4.721146]
[1718096903904,1.5477315,67576.0,67575.0,4.721146]
[1718096904113,1.2477315,67576.0,67575.0,4.721146]
[1718096904533,1.0389315,67576.0,67575.0,4.721146]
[1718096904750,1.2247315,67576.0,67575.0,4.721146]
[1718096904916,0.77904206,67576.0,67575.0,4.721146]
[1718096905301,0.8233063,67576.0,67575.0,4.721146]
[1718096905496,0.6095063,67576.0,67575.0,4.720146]
[1718096905702,0.8697063,67576.0,67575.0,4.720146]
[1718096905928,0.91351054,67576.0,67575.0,4.720146]
[1718096906133,0.91894707,67576.0,67575.0,4.720146]
[1718096906582,0.42294707,67576.0,67575.0,4.720146]
[1718096906784,0.33514707,67576.0,67575.0,4.720146]
[1718096906993,0.90751054,67576.0,67575.0,4.720146]